Cogmind - Beta 13 @@@ ROGUE MODE // 2024.06.02 @ 21:43:53 Player: faqq Result: Destroyed by 0B-V5Q(B) with Heavy Battle Rifle Performance ------------- Evolutions (1) 500 Regions Visited (4) 800 Robots Destroyed (45) 225 Value Destroyed (868) 868 Prototype IDs (1) 20 Alien Tech Used (0) 0 Bonus (19) 19 TOTAL SCORE: 2432 Bonus ------- High Alert Combat Kills 19 Cogmind --------- Core Integrity 0/400 Matter 298/300 Energy 265/265 System Corruption 4% Temperature Cool (0) Movement Core (500) Ox9 Location -7/Zion Parts ------- > --- POWER (1) -------- Improved Ion Engine > --- PROPULSION (4) --- (None) > --- UTILITY (2) ------ Large Storage Unit Visual Processing Unit > --- WEAPON (2) ------- Improved Medium Laser > --- INVENTORY (15) --- Ion Engine Heat Sink Signal Interpreter Light Armor Plating Hardened Light Armor Plating Hacking Suite Hacking Suite Spread Laser Spread Laser Spread Laser Grenade Launcher Rocket Launcher Katana Peak State ------------ > --- POWER ------------ Light Ion Engine > --- PROPULSION ------- Light Treads Light Treads Light Treads Compact Wheel > --- UTILITY ---------- Large Storage Unit Visual Processing Unit > --- WEAPON ----------- Improved Medium Laser Improved Medium Laser > --- INVENTORY -------- Light Ion Engine Wheel Signal Interpreter Light Armor Plating Hardened Light Armor Plating Hacking Suite Hacking Suite Spread Laser Spread Laser Spread Laser Improved Medium Laser Improved Medium Laser Grenade Launcher Rocket Launcher Katana [Rating: 17] Favorites ----------- Power Light Ion Engine Engine Light Ion Engine Propulsion Light Treads Treads Light Treads Leg Makeshift Leg Wheel Wheel Utility Visual Processing Unit Storage Large Storage Unit Processor Visual Processing Unit Weapon EM Pulse Gun Energy Gun EM Pulse Gun Launcher Grenade Launcher Slashing Weapon Katana Build | -11 -10 -9 -9 -7 ------- Run | Yrd Mat Mat Min Zio Slots Evolved 2 | . . 2 . . Power . | . . . . . Propulsion 2 | . . 2 . . Utility . | . . . . . Weapon . | . . . . . Parts Attached 37 | 7 7 19 . 4 Power 5 | 1 1 3 . . Engine 5 | 1 1 3 . . Core . | . . . . . Reactor . | . . . . . Propulsion 13 | 3 . 7 . 3 Treads 6 | 1 . 4 . 1 Leg 1 | . . . . 1 Wheel 6 | 2 . 3 . 1 Hover . | . . . . . Flight . | . . . . . Utility 5 | 1 4 . . . Device . | . . . . . Storage 4 | 1 3 . . . Processor 1 | . 1 . . . Hackware . | . . . . . Protection . | . . . . . Artifact . | . . . . . Weapon 14 | 2 2 9 . 1 Energy Gun 12 | 2 1 8 . 1 Energy Cannon . | . . . . . Ballistic Gun . | . . . . . Ballistic Cannon . | . . . . . Launcher 1 | . 1 . . . Special Weapon . | . . . . . Impact Weapon . | . . . . . Slashing Weapon 1 | . . 1 . . Piercing Weapon . | . . . . . Special Melee Weapon . | . . . . . Unidentified Prototypes 1 | . . 1 . . Corrupted Parts 1 | . . 1 . . System Corruption 4 | . . 4 . . Parts Lost 13 | . 1 5 . 7 Power 2 | . 1 1 . . Propulsion 6 | . . 1 . 5 Utility . | . . . . . Weapon 5 | . . 3 . 2 Highest Loss Streak 5 | . 1 4 . 5 To Critical Strikes 1 | . . . . 1 Average Slot Usage (%) 93 | . 96 93 100 81 Engine 11 | . 14 10 11 11 Treads 23 | . 14 27 33 28 Wheel 11 | . 14 11 11 4 Storage 11 | . 14 11 11 11 Processor 10 | . 10 11 11 11 Energy Gun 20 | . 24 19 22 15 Naked Turns . | . . . . . Heaviest Build 33 | 12 28 33 33 33 Greatest Support 60 | 20 20 60 10 60 Greatest Overweight (x) 10 | 1 2 3 3 10 Average Overweight (x) 1 | . . 1 3 1 Largest Inventory Capacity 25 | 8 25 15 15 15 Average Capacity 13 | 6 10 15 15 15 Most Carried 15 | 5 9 15 15 15 Average Carried 10 | 3 7 11 15 14 Final Capacity 15 | 8 15 15 15 15 Final Carried 15 | 5 9 15 15 13 Class Distribution -------------------- 72% | Mutant 27% | Scavenger-Mutant Dominant Class ---------------- Mutant | -10/Materials Mutant | -9/Materials Scavenger-Mutant | -9/Mines Scavenger-Mutant | -7/Zion Resources | -11 -10 -9 -9 -7 ----------- Run | Yrd Mat Mat Min Zio Matter Collected 603 | 270 50 263 . 20 Remotely . | . . . . . Salvage Created 1286 | 96 288 879 . 23 Parts 90 | 5 22 60 . 3 Haulers Intercepted 4 | . . 4 . . Recyclers Shooed . | . . . . . Parts Field Recycled . | . . . . . Retrieved Matter . | . . . . . Parts Self-Destructed . | . . . . . Prevented . | . . . . . Kills | -11 -10 -9 -9 -7 ------- Run | Yrd Mat Mat Min Zio Combat Hostiles Destroyed 28 | . 10 18 . . Melee 1 | . . 1 . . Guns 21 | . 5 16 . . AOE 6 | . 5 1 . . Classes Destroyed 11 | 2 5 3 . 1 Builder 2 | . 2 . . . Tunneler 2 | 1 . 1 . . Hauler 4 | . . 4 . . Recycler 2 | 1 . 1 . . Operator 2 | . 1 1 . . Watcher 4 | . 1 3 . . Swarmer 13 | . 6 7 . . Grunt 11 | . 4 7 . . Duelist 2 | . . 2 . . Sentry 2 | . . 2 . . Zionite 1 | . . . . 1 Best Kill Streak 6 | 2 4 6 . 1 Combat Bots Only 4 | . 3 4 . . Max Kills in Single Turn 2 | 2 2 1 . 1 Gunslinging . | . . . . . Exploded 2 | . 2 1 . . Melee 1 | . . 1 . . Uniques/NPCs Destroyed . | . . . . . Combat | -11 -10 -9 -9 -7 -------- Run | Yrd Mat Mat Min Zio Hostile Shots Fired 186 | . 34 96 . 56 Missed 67 | . 11 35 . 21 Damage Taken 1879 | 18 271 691 . 899 Core 496 | 9 80 107 . 300 Absorbed by Shields . | . . . . . Core Remaining (%) 80 | 96 64 . . . Volleys Fired 79 | 2 20 54 . 3 Largest 2 | 2 2 2 . 2 Hottest 130 | 80 80 130 . 112 Shots Fired 147 | 4 38 99 . 6 Gun 142 | 4 33 99 . 6 Cannon . | . . . . . Launcher 5 | . 5 . . . Special . | . . . . . Kinetic . | . . . . . Thermal 86 | . . 80 . 6 Explosive 5 | . 5 . . . Electromagnetic 56 | 4 33 19 . . Robot Hit Streak 7 | 2 6 7 . 3 Robot Miss Streak 13 | 2 4 13 . 1 Penetration Max . | . . . . . Secondary Targets 1 | . 1 . . . Max Gunslinging Chain 1 | . 1 . . . Shots Hit Robots 100 | 2 21 73 . 4 Core Hits 87 | 2 17 67 . 1 Critical Kills . | . . . . . Critical Parts Destroyed . | . . . . . Critical Strikes 5 | . . 5 . . Burn 2 | . . 2 . . Sever 3 | . . 3 . . Melee Attacks 16 | . . 16 . . Impact . | . . . . . Slashing 16 | . . 16 . . Piercing . | . . . . . Sneak Attacks 2 | . . 2 . . Combat Hostiles . | . . . . . Follow-up Attacks . | . . . . . Damage Inflicted 2154 | 81 646 1360 . 67 Guns 1219 | 12 275 865 . 67 Cannons . | . . . . . Explosions 523 | 69 371 83 . . Melee 410 | . . 410 . . Ramming 2 | . . 2 . . Kinetic . | . . . . . Thermal 1009 | 69 80 793 . 67 Explosive 291 | . 291 . . . Electromagnetic 442 | 12 275 155 . . Impact . | . . . . . Slashing 410 | . . 410 . . Piercing . | . . . . . Highest Corruption 4 | . . 4 4 4 Average Corruption 4 | . . 4 4 4 Corruption Purged . | . . . . . Corruption Blocked . | . . . . . Effects 26 | . . 19 . 7 Message Errors 7 | . . 6 . 1 Matter Fused 5 | . . 4 . 1 Heat Flow Errors 1 | . . 1 . . Energy Discharges 4 | . . 3 . 1 Data Loss (minor) 4 | . . 3 . 1 Misfires 3 | . . 1 . 2 Alerts 2 | . . 1 . 1 Overload Shots . | . . . . . Overflow Damage 27 | . . 27 . . Projectiles . | . . . . . Explosions 21 | . . 21 . . Melee 6 | . . 6 . . Knockbacks . | . . . . . Impact . | . . . . . Kinetic . | . . . . . Secondary . | . . . . . Self-Inflicted Damage 137 | 19 72 46 . . Shots 4 | 1 2 1 . . Rammed 2 | . 1 1 . . Targets Rammed 2 | . 1 1 . . Kicked . | . . . . . Crushed . | . . . . . Highest Temperature 344 | 68 144 344 . 69 Average Temperature 69 | 39 41 81 . 31 Received Heat Transfer 240 | . 48 174 . 18 Effects 2 | . . 2 . . Energy Bleed 1 | . . 1 . . Damage (minor) 1 | . . 1 . . Siege Activations . | . . . . . Robots Corrupted . | . . . . . Combat Hostiles . | . . . . . Parts Fried . | . . . . . Impact Corruptions . | . . . . . Robots Melted . | . . . . . Combat Hostiles . | . . . . . Parts Melted 5 | . . 5 . . Heat Transferred 1791 | 100 100 1443 . 148 Parts Sabotaged . | . . . . . Parts Stolen . | . . . . . Parts Stripped . | . . . . . Power Chain Reactions 5 | 1 2 2 . . Alert | -11 -10 -9 -9 -7 ------- Run | Yrd Mat Mat Min Zio Peak Influence 456 | 10 276 456 138 . Initial 138 | . 6 91 138 . Average 226 | 4 164 292 138 . Maximum Alert Level 2 | . 1 2 . . Low Security (%) 48 | 100 79 20 100 . Level 1 46 | . 20 70 . . Level 2 5 | . . 9 . . Level 3 . | . . . . . Level 4 . | . . . . . Level 5 . | . . . . . High Security . | . . . . . Max Security . | . . . . . Squads Dispatched 5 | . 3 2 . . Investigation 2 | . 1 1 . . Extermination . | . . . . . Reinforcement 3 | . 2 1 . . Assault . | . . . . . Garrison . | . . . . . Intercept . | . . . . . Searches Triggered . | . . . . . Construction Impeded . | . . . . . Haulers Reinforced . | . . . . . Active Scanning Responses . | . . . . . Cargo Convoy Interrupts . | . . . . . Stealth | -11 -10 -9 -9 -7 --------- Run | Yrd Mat Mat Min Zio Distress Signals 3 | . 1 2 . . Communications Jammed . | . . . . . Distress Signals . | . . . . . Times Spotted 52 | . 14 32 . 6 Peak Tracking Total 6 | . 4 6 . 6 Tactical Retreats 5 | . . 3 . 2 Traps | -11 -10 -9 -9 -7 ------- Run | Yrd Mat Mat Min Zio Traps Triggered 1 | . . 1 . . Indirectly . | . . . . . Trap Hack Attempts . | . . . . . Triggered . | . . . . . Disarmed . | . . . . . Reprogrammed . | . . . . . Reused . | . . . . . Traps Extracted . | . . . . . Installed . | . . . . . Triggered . | . . . . . Machines | -11 -10 -9 -9 -7 ---------- Run | Yrd Mat Mat Min Zio Machines Disabled 3 | . 3 . . . Max in Single Turn 1 | . 1 . . . Machines Repaired . | . . . . . Machines Dismantled . | . . . . . Machines Sabotaged . | . . . . . Overloaded Fab Kills . | . . . . . Hacking | -11 -10 -9 -9 -7 --------- Run | Yrd Mat Mat Min Zio Machines Accessed 5 | . 3 2 . . Terminals 3 | . 3 . . . Fabricators . | . . . . . Repair Stations . | . . . . . Recycling Units 2 | . . 2 . . Scanalyzers . | . . . . . Garrison Access . | . . . . . Total Hacks 12 | . 10 2 . . Successful 3 | . 1 2 . . Failed 9 | . 9 . . . Catastrophic 3 | . 3 . . . Database Lockouts . | . . . . . Manual 10 | . 10 . . . Terminals 10 | . 10 . . . Fabricators . | . . . . . Repair Stations . | . . . . . Recycling Units 2 | . . 2 . . Scanalyzers . | . . . . . Garrison Access . | . . . . . Terminal Hacks 1 | . 1 . . . Robot Analysis 1 | . 1 . . . Fabricator Hacks . | . . . . . Repair Station Hacks . | . . . . . Recycling Unit Hacks 2 | . . 2 . . Report Inventory 2 | . . 2 . . Scanalyzer . | . . . . . Garrison Access Hacks . | . . . . . Unauthorized Hacks . | . . . . . Terminals . | . . . . . Fabricators . | . . . . . Repair Stations . | . . . . . Recycling Units . | . . . . . Scanalyzers . | . . . . . Garrison Access . | . . . . . Data Cores Recovered . | . . . . . Used . | . . . . . Hacking Detections 3 | . 3 . . . Full Trace Events 1 | . 1 . . . Feedback Events . | . . . . . Feedback Blocked . | . . . . . Robot Schematics Acquired . | . . . . . Robots Built . | . . . . . Authchips . | . . . . . Time . | . . . . . Total Robot Build Rating . | . . . . . Part Schematics Acquired . | . . . . . Parts Built . | . . . . . Authchips . | . . . . . Time . | . . . . . Total Part Build Rating . | . . . . . Parts Repaired . | . . . . . Time . | . . . . . Parts Recycled . | . . . . . Recycled Matter . | . . . . . Retrieved Matter . | . . . . . Retrieved Components . | . . . . . Parts Scanalyzed . | . . . . . Part Schematics Acquired . | . . . . . Parts Damaged . | . . . . . Bothacking | -11 -10 -9 -9 -7 ------------ Run | Yrd Mat Mat Min Zio Used RIF Installer . | . . . . . Robots Hacked . | . . . . . Non-combat . | . . . . . Combat . | . . . . . Robot Hacks Applied . | . . . . . Relay Couplers Released . | . . . . . Fabnet Peak Effective % . | . . . . . Robots Rewired . | . . . . . Allies Hacked . | . . . . . Hacks Repelled . | . . . . . Allies | -11 -10 -9 -9 -7 -------- Run | Yrd Mat Mat Min Zio Total Allies . | . . . . . Largest Group . | . . . . . Highest-Rated Group . | . . . . . Highest-Rated Ally . | . . . . . Total Orders . | . . . . . Ally Attacks . | . . . . . Total Damage . | . . . . . Kills . | . . . . . Allies Corrupted . | . . . . . Allies Melted . | . . . . . Intel | -11 -10 -9 -9 -7 ------- Run | Yrd Mat Mat Min Zio Robot Analysis Total 1 | . 1 . . . Derelict Logs Recovered 1 | . . . 1 . Drone Launches . | . . . . . Drone Recoveries . | . . . . . Exploration | -11 -10 -9 -9 -7 ------------- Run | Yrd Mat Mat Min Zio Turns Passed 1728 | 92 509 868 62 197 Spaces Moved 985 | 62 324 432 50 117 Core 13 | 8 . . . 5 Treads 373 | 23 145 150 . 55 Legs . | . . . . . Wheels 599 | 31 179 282 50 57 Hover . | . . . . . Flight . | . . . . . Fastest Speed 50 | 50 95 95 125 110 Average Speed 136 | 114 129 140 125 157 Slowest Speed 550 | 160 160 240 125 550 Overloaded Moves . | . . . . . Propulsion Burnouts . | . . . . . Robots Hopped . | . . . . . Cave-ins Triggered . | . . . . . Exploration Rate (%) 24 | 5 52 40 15 12 Regions Visited 4 Branch Regions 2 Pre-discovered Areas . | . . . . . Known Exits Taken . | . . . . . Unknown Exits Taken 4 | 1 1 1 1 . Scrap Searched 1 | . . . 1 . Spaces Dug . | . . . . . Terrain Destroyed 35 | 2 30 3 . . Melee . | . . . . . Projectile . | . . . . . AOE 35 | 2 30 3 . . Terrain Rammed . | . . . . . Walls Destroyed . | . . . . . Machines Disabled . | . . . . . Actions | -11 -10 -9 -9 -7 --------- Run | Yrd Mat Mat Min Zio Total 1201 | 76 377 574 49 125 Wait 45 | . 14 31 . . Move 982 | 61 324 431 49 117 Hop . | . . . . . Pick Up 23 | 5 8 10 . . Fast Attach 16 | 6 2 6 . 2 Attach 6 | . 1 3 . 2 Detach 2 | . . 2 . . Swap 15 | 1 4 10 . . Drop 16 | 1 4 10 . 1 Fire 79 | 2 20 54 . 3 Melee 16 | . . 16 . . Ram . | . . . . . Kick . | . . . . . Crush 1 | . . 1 . . Escape Stasis . | . . . . . Rewire . | . . . . . Trap . | . . . . . Miscellaneous . | . . . . . Route ------- -11/Scrapyard -10/Materials -9/Materials -9/Mines -7/Zion History --------- Turn | Location | Event 30 | -11/Scrapyard | Discovered new exit (range 15) 93 | -11/Scrapyard | Entered Materials 300 | -10/Materials | Build established: Mutant 520 | -10/Materials | Discovered new exit (range 18) 602 | -10/Materials | Entered another Materials area 602 | -9/Materials | Evolved 2 slots: Propulsion x2 725 | -9/Materials | Lost 4 parts (1n3w) 925 | -9/Materials | Discovered new exit (range 6) 1470 | -9/Materials | Entered Mines 1474 | -9/Mines | Learned Materials non-interactive machine intel 1518 | -9/Mines | A Derelict revealed a hidden shortcut to a safe place 1519 | -9/Mines | Build established: Scavenger-Mutant 1532 | -9/Mines | Entered Zion 1533 | -7/Zion | Attacked by Zionites 1698 | -7/Zion | Spotted 0B-V5Q(B) 1699 | -7/Zion | Spotted 4U-89G(B) 1714 | -7/Zion | Core integrity fell below 50% 1725 | -7/Zion | Core integrity fell below 20% 1729 | -7/Zion | Destroyed by 0B-V5Q(B) with Heavy Battle Rifle Last Messages --------------- 01718_ JU-9B7(z) heat damages Mak. Leg, Backup Power III, Backup Plating III, Mak. Leg. 01718_ JU-9B7(z) overheating. 01718_ 2D-1FB(z) knocked back. 01719_ JU-9B7(z) heat short circuits Backup Power III. 01719_ JU-9B7(z) overheating. 01720_ JU-9B7(z) heat damages Backup Plating III. 01720_ JU-9B7(z) overheating. 01722_ Imp. Medium Laser destroyed. 01722_ Knocked back. 01722_ JU-9B7(z) overheating. 01723_ Slug penetrates System Quarantine Field Array. 01723_ JU-9B7(z) overheating. 01726_ 2D-1FB(z) destroyed. 01727_ JU-9B7(z) overheating. 01728_ JU-9B7(z) heat damages Mak. Power Source. 01728_ JU-9B7(z) overheating. Map ----- +----------------------------------------------------+ | ?????????????????????????????????????????????????? | | ?????????????????????????????????????????????????? | | ?????????????????????????????????????????????????? | | ?????????????????????????????????????????????????? | | ?????????????????????????????????????????????????? | | ?????????????????????????????????????????????????? | | ?????????????????????????????????????????????????? | | ?????????????????????????????????????????????????? | | ?????????????????????????????????????????????????? | | ?????????????????????????????????????????????????? | | ?????????????????????????????????????????????????? | | ?????????????????????????????????????????????????? | | ?????????????????????????????????????????????????? | | ?????????????????????????????????????????????????? | | ?????????????????????????????????????????????????# | | ????????????????????????????????????????# ??####?# | | ????????????????????????????????????????# ?# ### | | ????????????????????????????????????????# ?# ## | | ???????????????????????????????????????## ## ## | | ?????????????????####??????????????????# ## | | ?????????????????# "############??????# # | | ?????????????????# """"""""""""#??????# | | ???????????????### """" " "" ""#??????# | | ??????????"""""# BB % ######### | | ???????? BBz% | | ???????? BB @ % # ### | | ???????????""""# BB %% ###### #### #?## | | ???????????????### " " """#????# #??# ### | | ?????????????????# """"""""""""#???## #??# | | ?????????????????# "############???# #??## | | ?????????????????###????????????????# ##??## | | ????????????????????????????????????# #???## | | ????????????????????????????????????# ##??## | | ????????????????????????????????????# #### | | ???????????????????????????????????## | | ???????????????????????????????????# | | ??????????????????????????????????# ## | | ??????????????????????????????????## #### | | ???????????????????????????????????## ##??## | | ????????????????????????????????????##### ##????? | | ????????????????????????????????????????####?????? | | ?????????????????????????????????????????????????? | | ?????????????????????????????????????????????????? | | ?????????????????????????????????????????????????? | | ?????????????????????????????????????????????????? | | ?????????????????????????????????????????????????? | | ?????????????????????????????????????????????????? | | ?????????????????????????????????????????????????? | | ?????????????????????????????????????????????????? | | ?????????????????????????????????????????????????? | +----------------------------------------------------+ Best States ------------- Heat Dissipation 28 Energy Generation 12 Energy Capacity 265 Matter Stores 300 Matter Capacity 300 Sight Range 18 Terrain Scan Density 10 Evasion (%) 41 Recoil Reduction 3 Item Schematics ----------------- None Robot Schematics ------------------ None Fabricated ------------ Nothing Alien Tech Used ----------------- None Achievements -------------- None Challenges ------------ None Game ------ Seed StormSignalBeamcaster Manual? 0 Play Time 00:14:34 Cumulative 12.7 hours Start 2024.06.02 @ 21:30:27 End 2024.06.02 @ 21:43:53 Sessions 1 Manual Loads 0 Difficulty Rogue Special Mode None Game No. 15 Rogue 7 Adventurer 8 Explorer 0 Win Type - Total 0 Types 0/0/0/0/0/0/0/0/0 Lore% 19 Gallery% 23 Achievement% 19 Wizard Run 0 Options --------- Layout 1 ASCII 0 Keyboard 1 Movement Vi Keybinds 0 Fullscreen 1 Font 32/SmallcapsGlow Map View 50x35 Zoom Use 0% Tactical HUD 1 Map Filters NONE Filters NONE Steam 1 RUN: 2cfa8b1a-7d2b-435a-91a9-e7bb4d11a4c5